fUSD/lending_fUSD_20260408
["ID","MTS","AMOUNT","RATE_DAILY","PERIOD"]
[420045081,1775631088437,1000.0,9.96e-05,2]
[420045082,1775631088465,1000.0,9.96e-05,2]
[420045083,1775631088497,1000.0,9.96e-05,2]
[420045085,1775631098205,-1000.0,9.96e-05,2]
[420045086,1775631098705,-1000.0,9.96e-05,2]
[420045087,1775631099138,-1000.0,9.96e-05,2]
[420045088,1775631099459,-1000.0,9.96e-05,2]
[420045089,1775631099889,-1000.0,9.96e-05,2]
[420045090,1775631100195,-1000.0,9.96e-05,2]
[420045091,1775631100627,-1000.0,9.96e-05,2]
[420045092,1775631101087,-1000.0,9.96e-05,2]
[420045093,1775631101490,-1000.0,9.96e-05,2]
[420045094,1775631101796,-1000.0,9.96e-05,2]
[420045097,1775631105975,-1000.0,9.96e-05,2]
[420045098,1775631106472,-1000.0,9.96e-05,2]
[420045099,1775631106923,-1000.0,9.96e-05,2]
[420045100,1775631107228,-1000.0,9.96e-05,2]
[420045101,1775631107687,-1000.0,9.96e-05,2]
[420045102,1775631107986,-1000.0,9.96e-05,2]
[420045103,1775631109731,-1000.0,9.96e-05,2]
[420045104,1775631109826,-1000.0,9.96e-05,2]
[420045105,1775631109917,-1000.0,9.96e-05,2]
[420045106,1775631113503,-1000.0,9.96e-05,2]
[420045107,1775631114651,-1000.0,9.96e-05,2]
[420045108,1775631115726,-1000.0,9.96e-05,2]
[420045109,1775631140892,294.0,9.96e-05,2]
[420045110,1775631143528,-1000.0,9.96e-05,2]
[420045111,1775631144153,-9437.40359788,9.96e-05,2]
[420045112,1775631144354,-10000.01,9.96e-05,2]
[420045113,1775631144442,-10000.01,9.96e-05,2]
[420045114,1775631144558,-10000.01,9.96e-05,2]
[420045115,1775631144680,-1000.0,9.96e-05,2]
[420045116,1775631144723,-10000.01,9.96e-05,2]
[420045117,1775631144790,-10000.01,9.96e-05,2]
[420045118,1775631144922,-10000.01,9.96e-05,2]
[420045119,1775631145129,-10000.01,9.96e-05,2]
[420045120,1775631145226,-10000.01,9.96e-05,2]
[420045121,1775631145341,-10000.01,9.96e-05,2]
[420045122,1775631145462,-10000.01,9.96e-05,2]
[420045123,1775631145561,-10000.01,9.96e-05,2]
[420045124,1775631145654,-10000.01,9.96e-05,2]
[420045125,1775631146788,-1000.0,9.96e-05,2]
[420045126,1775631147253,-5000.01,9.96e-05,2]
[420045127,1775631147461,-5000.01,9.96e-05,2]
[420045128,1775631147575,-5000.01,9.96e-05,2]
[420045129,1775631147693,-5000.01,9.96e-05,2]
[420045130,1775631147771,-5000.01,9.96e-05,2]
[420045131,1775631147953,-5000.01,9.96e-05,2]
[420045132,1775631148120,-5000.01,9.96e-05,2]
[420045133,1775631148229,-5000.01,9.96e-05,2]
[420045134,1775631148329,-5000.01,9.96e-05,2]
[420045135,1775631148439,-5000.01,9.96e-05,2]
[420045136,1775631150020,-10000.01,9.96e-05,2]
[420045137,1775631150294,-5000.01,9.96e-05,2]
[420045138,1775631150545,-5000.01,9.96e-05,2]
[420045139,1775631150662,-5000.01,9.96e-05,2]
[420045140,1775631150797,-5000.01,9.96e-05,2]
[420045141,1775631150896,-5000.01,9.96e-05,2]
[420045142,1775631151044,-5000.01,9.959e-05,2]
[420045143,1775631151153,-5000.01,9.959e-05,2]
[420045144,1775631151273,-5000.01,9.959e-05,2]
[420045145,1775631151369,-5000.01,9.959e-05,2]
[420045146,1775631151766,-5000.01,9.959e-05,2]
[420045147,1775631154577,-5000.01,9.959e-05,2]
[420045148,1775631154591,-5000.01,9.959e-05,2]
[420045149,1775631154619,-5000.01,9.959e-05,2]
[420045150,1775631154635,-5000.01,9.959e-05,2]
[420045151,1775631154649,-5000.01,9.959e-05,2]
[420045152,1775631156304,-5000.01,9.959e-05,2]
[420045153,1775631156399,-5000.01,9.959e-05,2]
[420045154,1775631157311,-302.8825,9.959e-05,2]
[420045155,1775631159361,-5000.01,9.959e-05,2]
[420045156,1775631159451,-5000.01,9.959e-05,2]
[420045157,1775631159539,-5000.01,9.959e-05,2]
[420045158,1775631159634,-5000.01,9.959e-05,2]
[420045159,1775631159729,-5000.01,9.959e-05,2]
[420045160,1775631166421,-336.154,9.959e-05,2]
[420045161,1775631196182,609.5284219,9.859e-05,2]
[420045163,1775631266421,1090.29525435,9.958e-05,3]
[420045164,1775631267869,1090.29525436,9.958e-05,3]
[420045165,1775631290562,-150.0,9.958e-05,2]
[420045166,1775631290591,-300.0,9.958e-05,2]
[420045167,1775631290618,-164.0,9.958e-05,2]
[420045168,1775631290646,-1200.0,9.958e-05,2]
[420045169,1775631301117,1200.0,9.958e-05,2]
[420045170,1775631301154,300.0,9.958e-05,2]
[420045171,1775631302901,534.4933,9.859e-05,2]
[420045172,1775631305656,-958.28926477,9.959e-05,2]
[420045173,1775631305686,-500.0,9.959e-05,2]
[420045174,1775631306075,250.0,9.959e-05,2]
[420045175,1775631321023,-5000.0,9.959e-05,2]
[420045176,1775631326237,-250.0,9.959e-05,2]
[420045177,1775631326262,-500.0,9.959e-05,2]
[420045178,1775631326285,-250.0,9.959e-05,2]
[420045179,1775631327625,-150.0,9.959e-05,2]
[420045180,1775631327648,-250.0,9.959e-05,2]
[420045181,1775631327675,-500.0,9.959e-05,2]
[420045182,1775631327699,-100.0,9.959e-05,2]
[420045183,1775631328233,-400.0,9.959e-05,2]
[420045184,1775631328257,-500.0,9.959e-05,2]
[420045185,1775631328282,-100.0,9.959e-05,2]
[420045186,1775631328545,-213.94329023,9.959e-05,2]
[420045187,1775631328569,-500.0,9.959e-05,2]
[420045188,1775631328593,-286.05670977,9.959e-05,2]
[420045189,1775631328935,-213.94329023,9.959e-05,2]
[420045190,1775631328960,-500.0,9.959e-05,2]
[420045191,1775631328989,-286.05670977,9.959e-05,2]
[420045192,1775631329244,-602.70572672,9.959e-05,2]
[420045193,1775631329272,-397.29427328,9.959e-05,2]
[420045194,1775631329578,-491.46816321,9.959e-05,2]
[420045195,1775631329606,-508.53183679,9.959e-05,2]
[420045196,1775631330032,-380.2305997,9.959e-05,2]
[420045197,1775631330059,-619.7694003,9.959e-05,2]
[420045198,1775631330424,-268.99303619,9.959e-05,2]
[420045199,1775631330451,-731.00696381,9.959e-05,2]
[420045200,1775631330750,-157.75547268,9.959e-05,2]
[420045201,1775631330779,-842.24452732,9.959e-05,2]
[420045202,1775631331102,-46.51790917,9.959e-05,2]
[420045203,1775631331128,-888.76243649,9.959e-05,2]
[420045204,1775631331154,-64.71965434,9.959e-05,2]
[420045205,1775631331432,-824.04278215,9.959e-05,2]
[420045206,1775631331459,-175.95721785,9.959e-05,2]
[420045207,1775631331738,-712.80521864,9.959e-05,2]
[420045208,1775631331766,-287.19478136,9.959e-05,2]
[420045209,1775631332082,-601.56765513,9.959e-05,2]
[420045210,1775631332109,-398.43234487,9.959e-05,2]
[420045211,1775631332396,-490.33009162,9.959e-05,2]
[420045212,1775631332424,-509.66990838,9.959e-05,2]
[420045213,1775631333931,-379.09252811,9.959e-05,2]
[420045214,1775631333959,-620.90747189,9.959e-05,2]
[420045215,1775631334163,-267.8549646,9.959e-05,2]
[420045216,1775631334189,-732.1450354,9.959e-05,2]
[420045217,1775631334301,-156.61740109,9.959e-05,2]
[420045218,1775631334328,-843.38259891,9.959e-05,2]
[420045219,1775631334439,-45.37983758,9.959e-05,2]
[420045220,1775631334467,-888.76243649,9.959e-05,2]
[420045221,1775631334495,-65.85772593,9.959e-05,2]
[420045222,1775631334584,-822.90471056,9.959e-05,2]
[420045223,1775631334613,-177.09528944,9.959e-05,2]
[420045224,1775631334686,-711.66714705,9.959e-05,2]
[420045225,1775631334717,-288.33285295,9.959e-05,2]
[420045226,1775631334814,-600.42958354,9.959e-05,2]
[420045227,1775631334844,-399.57041646,9.959e-05,2]
[420045228,1775631339945,-489.19202003,9.959e-05,2]
[420045229,1775631339973,-510.80797997,9.959e-05,2]
[420045230,1775631341178,-377.95445652,9.959e-05,2]
[420045231,1775631341207,-622.04554348,9.959e-05,2]
[420045232,1775631341277,-266.71689301,9.959e-05,2]
[420045233,1775631341304,-733.28310699,9.959e-05,2]
[420045234,1775631341341,0.01,9.959e-05,2]
[420045235,1775631341364,499.99,9.959e-05,2]
[420045236,1775631341723,-155.4793295,9.959e-05,2]
[420045237,1775631341751,-844.5206705,9.959e-05,2]
[420045238,1775631342178,-44.24176599,9.959e-05,2]
[420045239,1775631342207,-888.76243649,9.959e-05,2]
[420045240,1775631342235,-66.99579752,9.959e-05,2]
[420045241,1775631344868,-821.76663897,9.959e-05,2]
[420045242,1775631344895,-178.23336103,9.959e-05,2]
[420045243,1775631345140,-710.52907546,9.959e-05,2]
[420045244,1775631345168,-289.47092454,9.959e-05,2]
[420045245,1775631346079,-599.29151195,9.959e-05,2]
[420045246,1775631346106,-400.70848805,9.959e-05,2]
[420045247,1775631346526,-488.05394844,9.959e-05,2]
[420045248,1775631346553,-511.94605156,9.959e-05,2]
[420045249,1775631348251,-376.81638493,9.959e-05,2]
[420045250,1775631348280,-623.18361507,9.959e-05,2]
[420045251,1775631349070,-265.57882142,9.959e-05,2]
[420045252,1775631349097,-734.42117858,9.959e-05,2]
[420045253,1775631349227,-154.34125791,9.959e-05,2]
[420045254,1775631349255,-845.65874209,9.959e-05,2]
[420045255,1775631350673,-43.1036944,9.959e-05,2]
[420045256,1775631350702,-888.76243649,9.959e-05,2]
[420045257,1775631350730,-68.13386911,9.959e-05,2]
[420045258,1775631351636,-820.62856738,9.959e-05,2]
[420045259,1775631351663,-179.37143262,9.959e-05,2]
[420045260,1775631351745,-709.39100387,9.959e-05,2]
[420045261,1775631351780,-888.76243649,9.959e-05,2]
[420045262,1775631351814,-888.76243649,9.959e-05,2]
[420045263,1775631351847,-888.76243649,9.959e-05,2]
[420045264,1775631351882,-888.76243649,9.959e-05,2]
[420045265,1775631351915,-582.36606385,9.959e-05,2]
[420045266,1775631352158,-306.39637264,9.959e-05,2]
[420045267,1775631352185,-693.60362736,9.959e-05,2]
[420045268,1775631352415,-195.15880913,9.959e-05,2]
[420045269,1775631352442,-804.84119087,9.959e-05,2]
[420045270,1775631356583,-83.92124562,9.959e-05,2]
[420045271,1775631356611,-888.76243649,9.959e-05,2]
[420045272,1775631356639,-27.31631789,9.959e-05,2]
[420045273,1775631357136,-861.4461186,9.959e-05,2]
[420045274,1775631357169,-888.76243649,9.959e-05,2]
[420045275,1775631357203,-888.76243649,9.959e-05,2]
[420045276,1775631357237,-888.76243649,9.959e-05,2]
[420045277,1775631357271,-888.76243649,9.959e-05,2]
[420045278,1775631357302,-559.24301614,9.959e-05,2]
[420045279,1775631357758,-888.76243649,9.959e-05,2]
[420045280,1775631357786,-111.23756351,9.959e-05,2]
[420045281,1775631358702,-777.52487298,9.959e-05,2]
[420045282,1775631358728,-222.47512702,9.959e-05,2]
[420045283,1775631359670,-277.52487298,9.959e-05,2]
[420045284,1775631359693,-500.0,9.959e-05,2]
[420045285,1775631359716,-222.47512702,9.959e-05,2]
[420045286,1775631360549,-277.52487298,9.959e-05,2]
[420045287,1775631360579,-722.47512702,9.959e-05,2]
[420045288,1775631361153,300.0,9.958e-05,2]
[420045289,1775631364384,410.3175,9.859e-05,2]
[420045290,1775631365502,-266.43101501,9.959e-05,2]
[420045291,1775631365531,-500.0,9.959e-05,2]
[420045292,1775631365566,-988.90614203,9.959e-05,2]
[420045293,1775631365602,-988.90614203,9.959e-05,2]
[420045294,1775631365632,-500.0,9.959e-05,2]
[420045295,1775631365666,-988.90614203,9.959e-05,2]
[420045296,1775631365704,-544.80497577,9.959e-05,2]
[420045297,1775631365921,-444.10116626,9.959e-05,2]
[420045298,1775631365957,-988.90614203,9.959e-05,2]
[420045299,1775631365991,-988.90614203,9.959e-05,2]
[420045300,1775631366024,-988.90614203,9.959e-05,2]
[420045301,1775631366054,-235.68758553,9.959e-05,2]
[420045302,1775631366088,-988.90614203,9.959e-05,2]
[420045303,1775631366118,-229.18336018,9.959e-05,2]
[420045304,1775631411764,-922.86,9.959e-05,2]
[420045305,1775631411789,-77.14,9.959e-05,2]
[420045306,1775631413391,-216.86,9.959e-05,2]
[420045307,1775631413415,-150.0,9.959e-05,2]
[420045308,1775631413438,-250.0,9.959e-05,2]
[420045309,1775631413464,-383.14,9.959e-05,2]
[420045310,1775631414562,-1000.0,9.959e-05,2]
[420045311,1775631415619,-1000.0,9.959e-05,2]
[420045312,1775631416821,-1000.0,9.959e-05,2]
[420045313,1775631417860,-1000.0,9.959e-05,2]
[420045314,1775631418802,-1000.0,9.959e-05,2]
[420045315,1775631452260,-500.0,0.00046473,120]
[420045316,1775631452289,-1000000.0,0.00046473,120]
[420045317,1775631452316,-1000000.0,0.00046473,120]
[420045318,1775631452344,-1000000.0,0.00046473,120]
[420045319,1775631452371,-1000000.0,0.00046473,120]
[420045320,1775631452401,-1000000.0,0.00046473,120]
[420045321,1775631452427,-200.0,0.00046473,120]
[420045322,1775631452452,-200.0,0.00046473,120]
[420045323,1775631452478,-282.64173759,0.00046473,120]
[420045324,1775631452505,-1000000.0,0.00046473,120]
[420045325,1775631452533,-1000000.0,0.00046473,120]
[420045326,1775631452560,-1000000.0,0.00046473,120]
[420045327,1775631452586,-200.0,0.00046473,120]
[420045328,1775631452612,-200.0,0.00046473,120]
[420045329,1775631452640,-200.0,0.00046473,120]
[420045330,1775631452666,-200.0,0.00046473,120]
[420045331,1775631452693,-200.0,0.00046473,120]
[420045332,1775631452719,-200.0,0.00046473,120]
[420045333,1775631452745,-200.0,0.00046473,120]
[420045334,1775631452772,-200.0,0.00046473,120]
[420045335,1775631452797,-176.52594308,0.00046473,30]
[420045336,1775631452823,-200.0,0.00046473,120]
[420045337,1775631452848,-200.0,0.00046473,120]
[420045338,1775631452875,-200.0,0.00046473,120]
[420045339,1775631452901,-200.0,0.00046473,120]
[420045340,1775631452928,-1000.0,0.00046473,60]
[420045341,1775631452955,-500.0,0.00046473,30]
[420045342,1775631452982,-500.0,0.00046473,30]
[420045343,1775631453008,-500.0,0.00046473,30]
[420045344,1775631453035,-500.0,0.00046473,30]
[420045345,1775631453061,-500.0,0.00046473,30]
[420045346,1775631453087,-500.0,0.00046473,30]
[420045347,1775631453114,-500.0,0.00046473,30]
[420045348,1775631453140,-500.0,0.00046473,30]
[420045349,1775631453165,-500.0,0.00046473,30]
[420045350,1775631453192,-1000.0,0.00046473,60]
[420045351,1775631453218,-500.0,0.00046473,30]
[420045352,1775631453243,-500.0,0.00046473,30]
[420045353,1775631453269,-500.0,0.00046473,30]
[420045354,1775631453296,-179.50489723,0.00046473,120]
[420045355,1775631453699,-1000.0,0.00046473,30]
[420045356,1775631453728,-1000.0,0.00046473,30]
[420045357,1775631453757,-1000.0,0.00046473,120]
[420045358,1775631453784,-1000.0,0.00046473,120]
[420045359,1775631453813,-1000.0,0.00046473,120]
[420045360,1775631453840,-533.76089,0.00046473,60]
[420045361,1775631453868,-204.56384,0.00046473,60]
[420045362,1775631453895,-1000.0,0.00046473,120]
[420045363,1775631453923,-533.76089,0.00046473,60]
[420045364,1775631453950,-204.56384,0.00046473,60]
[420045365,1775631453977,-1000.0,0.00046473,120]
[420045366,1775631454007,-533.76089,0.00046473,60]
[420045367,1775631454036,-204.56384,0.00046473,60]
[420045368,1775631454064,-1000.0,0.00046473,120]
[420045369,1775631454090,-533.76089,0.00046473,60]
[420045370,1775631454117,-1000.0,0.00046473,120]
[420045371,1775631454145,-204.56384,0.00046473,60]
[420045372,1775631454172,-533.76089,0.00046473,60]
[420045373,1775631454199,-204.56384,0.00046473,60]
[420045374,1775631454226,-1000.0,0.00046473,30]
[420045375,1775631454253,-642.6,0.00046473,120]
[420045376,1775631454280,-642.6,0.00046473,120]
[420045377,1775631454307,-642.6,0.00046473,120]
[420045378,1775631454333,-642.6,0.00046473,120]
[420045379,1775631454360,-1000.0,0.00046473,60]
[420045380,1775631454387,-642.6,0.00046473,120]
[420045381,1775631454413,-642.6,0.00046473,120]
[420045382,1775631454439,-642.6,0.00046473,120]
[420045383,1775631454466,-642.6,0.00046473,120]
[420045384,1775631454492,-642.6,0.00046473,120]
[420045385,1775631454519,-642.6,0.00046473,120]
[420045386,1775631454546,-642.6,0.00046473,120]
[420045387,1775631454572,-642.6,0.00046473,120]
[420045388,1775631454599,-642.6,0.00046473,120]
[420045389,1775631454626,-642.6,0.00046473,120]
[420045390,1775631454653,-642.6,0.00046473,120]
[420045391,1775631454681,-1000.0,0.00046473,30]
[420045392,1775631454708,-642.6,0.00046473,120]
[420045393,1775631454735,-642.6,0.00046473,120]
[420045394,1775631454761,-642.6,0.00046473,120]
[420045395,1775631454788,-642.6,0.00046473,120]
[420045396,1775631454815,-642.6,0.00046473,120]
[420045397,1775631454842,-642.6,0.00046473,120]
[420045398,1775631454869,-642.6,0.00046473,120]
[420045399,1775631454896,-642.6,0.00046473,120]
[420045400,1775631454924,-642.6,0.00046473,120]
[420045401,1775631454951,-642.6,0.00046473,120]
[420045402,1775631454976,-1000.0,0.00046473,60]
[420045403,1775631455004,-642.6,0.00046473,120]
[420045404,1775631455031,-642.6,0.00046473,120]
[420045405,1775631455060,-50000.0,0.00046473,50]
[420045406,1775631455087,-642.6,0.00046473,120]
[420045407,1775631455113,-642.6,0.00046473,120]
[420045408,1775631455140,-642.51935849,0.00046473,120]
[420045409,1775631455170,-50000.0,0.00046473,51]
[420045410,1775631455196,-1000.0,0.00046473,60]
[420045411,1775631455225,-50000.0,0.00046473,52]
[420045412,1775631455251,-1000.0,0.00046473,30]
[420045413,1775631455277,-1000.0,0.00046473,120]
[420045414,1775631455307,-50000.0,0.00046473,53]
[420045415,1775631455333,-1000.0,0.00046473,60]
[420045416,1775631455360,-1000.0,0.00046473,60]
[420045417,1775631455386,-4079.03,0.00046473,120]
[420045418,1775631455412,-156.96936107,0.00046473,120]
[420045419,1775631455438,-226.4,0.00046473,120]
[420045420,1775631455463,-1000.0,0.00046473,30]
[420045421,1775631455494,-741629.38505254,0.00046473,120]
[420045422,1775631459533,-258370.61494746,0.00046473,120]
[420045423,1775631459565,-1000000.0,0.00046473,120]
[420045424,1775631459595,-1000000.0,0.00046473,120]
[420045425,1775631459623,-1000.0,0.00046473,60]
[420045426,1775631459650,-1000.0,0.00046473,31]
[420045427,1775631459677,-1000.0,0.00046473,31]
[420045428,1775631459704,-1000.0,0.00046473,31]
[420045429,1775631459732,-1000.0,0.00046473,31]
[420045430,1775631459760,-1000.0,0.00046473,31]
[420045431,1775631459787,-1000.0,0.00046473,31]
[420045432,1775631459813,-1000.0,0.00046473,31]
[420045433,1775631459839,-1000.0,0.00046473,31]
[420045434,1775631459866,-1000.0,0.00046473,31]
[420045435,1775631459892,-1000.0,0.00046473,31]
[420045436,1775631459917,-1000.0,0.00046473,31]
[420045437,1775631459943,-1000.0,0.00046473,31]
[420045438,1775631459970,-1000.0,0.00046473,31]
[420045439,1775631459996,-1000.0,0.00046473,31]
[420045440,1775631460022,-1000.0,0.00046473,31]
[420045441,1775631460048,-1000.0,0.00046473,31]
[420045442,1775631460075,-1000.0,0.00046473,31]
[420045443,1775631460101,-1000.0,0.00046473,31]
[420045444,1775631460128,-1000.0,0.00046473,31]
[420045445,1775631460155,-1000.0,0.00046473,31]
[420045446,1775631460181,-1000.0,0.00046473,31]
[420045447,1775631460207,-1000.0,0.00046473,31]
[420045448,1775631460234,-1000.0,0.00046473,31]
[420045449,1775631460263,-1000.0,0.00046473,31]
[420045450,1775631460289,-1000.0,0.00046473,31]
[420045451,1775631460315,-1000.0,0.00046473,31]
[420045452,1775631460343,-1000.0,0.00046473,31]
[420045453,1775631460371,-1000.0,0.00046473,31]
[420045454,1775631460397,-1000.0,0.00046473,31]
[420045455,1775631460423,-1000.0,0.00046473,31]
[420045456,1775631460450,-1000.0,0.00046473,31]
[420045457,1775631460477,-1000.0,0.00046473,31]
[420045458,1775631460504,-1000.0,0.00046473,31]
[420045459,1775631460531,-1000.0,0.00046473,31]
[420045460,1775631460559,-1000.0,0.00046473,31]
[420045461,1775631460587,-1000.0,0.00046473,31]
[420045462,1775631460614,-1000.0,0.00046473,31]
[420045463,1775631460641,-1000.0,0.00046473,31]
[420045464,1775631460668,-1000.0,0.00046473,31]
[420045465,1775631460694,-1000.0,0.00046473,30]
[420045466,1775631460721,-1000.0,0.00046473,31]
[420045467,1775631460748,-1000.0,0.00046473,31]
[420045468,1775631460775,-1000.0,0.00046473,31]
[420045469,1775631460802,-1000.0,0.00046473,31]
[420045470,1775631460828,-1000.0,0.00046473,31]
[420045471,1775631460856,-1000.0,0.00046473,31]
[420045472,1775631460882,-1000.0,0.00046473,31]
[420045473,1775631460908,-1000.0,0.00046473,31]
[420045474,1775631460935,-1000.0,0.00046473,31]
[420045475,1775631460962,-1000.0,0.00046473,31]
[420045476,1775631460988,-1000.0,0.00046473,31]
[420045477,1775631461016,-1000.0,0.00046473,31]
[420045478,1775631461043,-1000.0,0.00046473,31]
[420045479,1775631461069,-1000.0,0.00046473,60]
[420045480,1775631461095,-1000.0,0.00046473,31]
[420045481,1775631461122,-1000.0,0.00046473,31]
[420045482,1775631461149,-1000.0,0.00046473,31]
[420045483,1775631461176,-1000.0,0.00046473,31]
[420045484,1775631461202,-1000.0,0.00046473,31]
[420045485,1775631461229,-1000.0,0.00046473,31]
[420045486,1775631461256,-1000.0,0.00046473,31]
[420045487,1775631461283,-1000.0,0.00046473,31]
[420045488,1775631461308,-1000.0,0.00046473,120]
[420045489,1775631461335,-1000.0,0.00046473,31]
[420045490,1775631461361,-1000.0,0.00046473,31]
[420045491,1775631461388,-1000.0,0.00046473,31]
[420045492,1775631461415,-1000.0,0.00046473,31]
[420045493,1775631461440,-1000.0,0.00046473,30]
[420045494,1775631461468,-1000.0,0.00046473,120]
[420045495,1775631461496,-652.99,0.00046473,120]
[420045496,1775631461522,-556.22722704,0.00046473,60]
[420045497,1775631461549,-900.0,0.00046473,120]
[420045498,1775631461580,-1000000.0,0.00046473,120]
[420045499,1775631461612,-1000000.0,0.00046473,120]
[420045500,1775631461643,-1000000.0,0.00046473,120]
[420045501,1775631461671,-1000000.0,0.00046473,120]
[420045502,1775631461696,-1084.74133989,0.00046473,30]
[420045503,1775631461723,-511.8541646,0.00046473,120]
[420045504,1775631461749,-1487.01081715,0.00046473,120]
[420045505,1775631461776,-2079.78208321,0.00046473,30]
[420045506,1775631461803,-262.4843858,0.00046473,120]
[420045507,1775631461829,-687.16124351,0.00046473,120]
[420045508,1775631461857,-1072.88229563,0.00046473,30]
[420045509,1775631461884,-160.95197119,0.00046473,31]
[420045510,1775631461911,-2384.04211547,0.00046473,120]
[420045511,1775631461937,-552.22096008,0.00046473,30]
[420045512,1775631461964,-412.8771418,0.00046473,30]
[420045513,1775631461990,-2547.9558215,0.00046473,120]
[420045514,1775631462016,-2594.34493614,0.00046473,120]
[420045515,1775631462042,-2632.69132699,0.00046473,91]
[420045516,1775631462067,-925.87248286,0.00046473,60]
[420045517,1775631462093,-1557.89422271,0.00046473,30]
[420045518,1775631462119,-953.59767398,0.00046473,30]
[420045519,1775631462146,-1221.96426663,0.00046473,30]
[420045520,1775631462173,-3096.91693975,0.00046473,30]
[420045521,1775631462199,-2652.92391941,0.00046473,30]
[420045522,1775631462225,-3143.81404879,0.00046473,120]
[420045523,1775631462253,-1622.98484068,0.00046473,120]
[420045524,1775631462280,-2712.87087301,0.00046473,120]
[420045525,1775631462307,-2207.9140504,0.00046473,30]
[420045526,1775631462333,-2959.90476745,0.00046473,120]
[420045527,1775631462360,-804.53030899,0.00046473,30]
[420045528,1775631462387,-2954.73674336,0.00046473,120]
[420045529,1775631462414,-154.60093778,0.00046473,120]
[420045530,1775631462442,-2983.8304357,0.00046473,60]
[420045531,1775631462469,-3091.30884447,0.00046473,30]
[420045532,1775631462494,-621.36583316,0.00046473,120]
[420045533,1775631462802,-3185.81406976,0.00046473,30]
[420045534,1775631462829,-1623.83168423,0.00046473,30]
[420045535,1775631462857,-3041.53986067,0.00046473,120]
[420045536,1775631462884,-2825.82069794,0.00046473,120]
[420045537,1775631462912,-2637.7484347,0.00046473,120]
[420045538,1775631462940,-2643.46534401,0.00046473,30]
[420045539,1775631462966,-2500.0,0.00046473,30]
[420045540,1775631462992,-1400.899997,0.00046473,120]
[420045541,1775631463020,-561.95323813,0.00046473,120]
[420045542,1775631463048,-1980.78605466,0.00046473,120]
[420045543,1775631463078,-967.1240849,0.00046473,30]
[420045544,1775631463107,-1036.9928536,0.00046473,120]
[420045545,1775631463134,-3101.03065961,0.00046473,120]
[420045546,1775631463163,-1182.04775739,0.00046473,120]
[420045547,1775631463192,-1235.50344261,0.00046473,120]
[420045548,1775631463220,-150.61304401,0.00046473,120]
[420045549,1775631463248,-933.83260594,0.00046473,30]
[420045550,1775631463277,-221.17808201,0.00046473,120]
[420045551,1775631463305,-2373.91467492,0.00046473,30]
[420045552,1775631463332,-942.95921762,0.00046473,30]
[420045553,1775631463361,-254.38418939,0.00046473,120]
[420045554,1775631463391,-1724.69372736,0.00046473,30]
[420045555,1775631463419,-368.58333091,0.00046473,90]
[420045556,1775631463446,-336.44748882,0.00046473,120]
[420045557,1775631463475,-323.85051588,0.00046473,120]
[420045558,1775631463504,-1015.14234534,0.00046473,30]
[420045559,1775631463532,-1156.71245825,0.00046473,120]
[420045560,1775631463560,-758.72550372,0.00046473,60]
[420045561,1775631463589,-1661.6575698,0.00046473,120]
[420045562,1775631463617,-485.38237727,0.00046473,120]
[420045563,1775631463647,-741.34300945,0.00046473,120]
[420045564,1775631463677,-224.92059606,0.00046473,30]
[420045565,1775631463706,-2116.27446304,0.00046473,60]
[420045566,1775631463735,-1049.02068882,0.00046473,30]
[420045567,1775631463764,-3101.29051784,0.00046473,120]
[420045568,1775631463793,-196.02016366,0.00046473,120]
[420045569,1775631463822,-2919.72916685,0.00046473,120]
[420045570,1775631463852,-316.31886114,0.00046473,60]
[420045571,1775631463883,-2787.06978087,0.00046473,120]
[420045572,1775631463913,-1372.81780852,0.00046473,120]
[420045573,1775631463943,-273.00474452,0.00046473,120]
[420045574,1775631463973,-2034.19062463,0.00046473,30]
[420045575,1775631464001,-380.57939523,0.00046473,30]
[420045576,1775631464030,-509.4050139,0.00046473,120]
[420045577,1775631464059,-785.97112124,0.00046473,120]
[420045578,1775631464088,-1002.02536284,0.00046473,30]
[420045579,1775631464117,-447.70351917,0.00046473,120]
[420045580,1775631464145,-1691.40989054,0.00046473,120]
[420045581,1775631464173,-996.36299664,0.00046473,120]
[420045582,1775631464202,-1896.9779234,0.00046473,120]
[420045583,1775631464233,-728.52714017,0.00046473,120]
[420045584,1775631464261,-1596.35674939,0.00046473,30]